bitfinex-derivatives/quotes_ETHF0:USTF0_20251001
["timestamp","ask_amount","ask_price","bid_price","bid_amount"]
[1759316038116,2.45942602,4287.8,4287.7,0.65464]
[1759316039819,2.45942602,4287.8,4287.7,0.235]
[1759316041017,0.41964,4287.7,4287.5,0.60615]
[1759316041215,1.5343,4287.6,4287.5,0.60615]
[1759316041414,1.5343,4287.6,4287.5,1.23245]
[1759316041616,1.95395,4287.6,4287.5,1.23245]
[1759316041815,1.5343,4287.6,4287.5,1.23245]
[1759316042015,1.95395,4287.6,4287.5,1.23245]
[1759316042616,1.95395,4287.6,4287.5,0.8128]
[1759316042812,2.44481292,4287.6,4287.5,0.84116]
[1759316043018,2.02516292,4287.6,4287.5,0.84116]
[1759316043722,2.44481292,4287.6,4287.5,0.84116]
[1759316043920,2.44481292,4287.6,4287.5,1.23246]
[1759316044517,2.44481292,4287.6,4287.5,0.41966]
[1759316044723,2.44481292,4287.6,4287.4,3.62747]
[1759316044724,2.20736,4287.5,4287.4,3.62747]
[1759316044925,2.69822292,4287.5,4287.4,3.86247]
[1759316045720,2.20736,4287.5,4287.4,3.86247]
[1759316046626,2.69794459,4287.5,4287.4,3.86247]
[1759316046928,2.69794459,4287.5,4287.4,3.4428]
[1759316047721,0.8774,4287.2,4287.1,0.00259735]
[1759316047931,2.02488459,4287.2,4287.1,0.00259735]
[1759316048221,0.67316,4286.5,4286.4,3.2078]
[1759316048427,2.697643,4286.5,4286.4,3.4428]
[1759316048818,2.2075,4286.0,4285.9,3.2078]
[1759316049018,0.67325,4285.5,4285.4,3.2078]
[1759316049222,2.27999159,4285.5,4285.4,3.44507722]
[1759316049426,2.20994498,4285.5,4285.4,3.60137722]
[1759316049621,2.20994498,4285.5,4285.4,44.01007722]
[1759316052527,0.235,4286.3,4285.4,44.01007722]
[1759316052528,0.2534,4286.5,4285.5,0.2446]
[1759316052723,1.9541,4286.1,4286.0,0.3913]
[1759316052925,1.9541,4286.1,4286.0,0.6273]
[1759316053432,1.95676938,4286.1,4286.0,0.6273]
[1759316053727,1.95676938,4286.1,4286.0,1.0186]
[1759316054028,1.53696938,4286.1,4286.0,1.0186]
[1759316054327,0.65956938,4286.1,4286.0,6.2632]
[1759316054924,0.65956938,4286.1,4286.0,47.0632]
[1759316055333,0.00266938,4286.1,4286.0,47.0632]
[1759316058927,1.53696938,4286.1,4286.0,0.3913]
[1759316059129,1.53696938,4286.1,4286.0,1.0186]
[1759316059530,1.53696938,4286.1,4286.0,41.8186]
[1759316060136,0.00266938,4286.1,4286.0,42.0632]
[1759316060833,0.00266938,4286.1,4286.0,42.48301]
[1759316061033,0.00266938,4286.1,4286.0,42.64881]
[1759316061234,0.00266938,4286.1,4286.0,42.48301]
[1759316061838,0.00266938,4286.1,4286.0,47.62821]
[1759316062730,0.41981,4286.0,4285.5,1.2535146]
[1759316062925,1.7767,4285.0,4284.3,1.67420835]
[1759316063126,1.7767,4285.0,4284.0,3.2078]
[1759316063127,1.94479,4284.1,4284.0,3.2078]
[1759316063331,1.94479,4284.1,4284.0,3.6458]
[1759316063532,1.94479,4284.1,4284.0,3.8858]
[1759316063940,1.94479,4284.1,4284.0,3.88770772]
[1759316064236,1.94479,4284.1,4284.0,4.33250772]
[1759316064431,1.94479,4284.1,4284.0,5.01720772]
[1759316064836,0.41999,4284.1,4284.0,5.01720772]
[1759316065036,0.41999,4284.1,4284.0,5.28800772]
[1759316065236,0.41999,4284.1,4284.0,5.04800772]
[1759316065434,0.41999,4284.1,4284.0,5.28800772]
[1759316065944,0.0233,4284.3,4284.0,5.70800772]
[1759316066134,0.0233,4284.3,4284.2,1.5487]
[1759316066338,0.0233,4284.3,4284.2,1.7887]
[1759316067042,0.0233,4284.3,4284.2,42.5887]
[1759316068541,0.41995,4284.5,4284.4,0.864]
[1759316068845,0.41993,4284.7,4284.6,1.5487]
[1759316069142,1.50093,4284.7,4284.6,45.7965]
[1759316070445,0.41993,4284.7,4284.6,45.7965]
[1759316070744,1.08073,4284.7,4284.6,45.7965]
[1759316071343,0.41993,4284.7,4284.6,45.7965]
[1759316071545,1.08073,4284.7,4284.6,45.7965]
[1759316075948,0.41993,4284.7,4284.6,45.7965]
[1759316076153,0.41993,4284.8,4284.7,1.5487]
[1759316076453,0.41993,4284.8,4284.7,1.7887]
[1759316076948,0.84013,4284.8,4284.7,1.7887]
[1759316077154,0.44321,4284.9,4284.8,1.5487]
[1759316077452,0.41991,4284.9,4284.8,1.95602]
[1759316078041,1.50091,4284.9,4284.8,1.5361]
[1759316078355,1.94171,4284.9,4284.8,1.5361]
[1759316078754,1.94171,4284.9,4284.8,1.104]
[1759316079752,1.94171,4284.9,4284.8,1.7887]
[1759316081356,1.94171,4284.9,4284.8,1.104]
[1759316081550,0.41993,4284.7,4284.6,44.0078]
[1759316081751,1.08073,4284.7,4284.6,44.2468]
[1759316082256,1.08073,4284.7,4284.6,44.0078]
[1759316082749,1.94173,4284.7,4284.6,3.4468]
[1759316082948,1.04992,4284.4,4283.5,0.2708]
[1759316083149,3.62783,4283.7,4283.6,0.8714]
[1759316083354,4.12340525,4283.7,4283.6,0.8714]
[1759316083554,4.12340525,4283.7,4283.6,0.6847]
[1759316083945,4.12340525,4283.7,4283.6,0.68661858]
[1759316085455,4.12340525,4283.7,4283.6,1.55061858]
[1759316085656,3.62783,4283.7,4283.6,1.55061858]
[1759316086160,8.2078,4283.7,4283.1,0.4192]
[1759316086455,3.62788,4283.2,4283.0,0.6677]
[1759316086658,0.49516532,4283.1,4283.0,1.2992]
[1759316086954,3.62788,4283.2,4283.0,1.5392]
[1759316087156,3.63027042,4283.2,4283.0,1.54183284]
[1759316088258,3.63027042,4283.2,4283.1,1.7887]
[1759316090157,3.63027042,4283.2,4283.1,1.5487]
[1759316090458,3.63027042,4283.2,4283.1,1.7887]
[1759316090658,3.63027042,4283.2,4283.1,1.1039]
[1759316090862,3.63027042,4283.2,4283.1,1.3439]
[1759316092860,3.63027042,4283.2,4283.1,1.7887]
[1759316093062,3.63027042,4283.2,4283.1,1.5487]
[1759316093261,3.63027042,4283.2,4283.1,1.7887]
[1759316096161,0.42009,4283.1,4283.0,0.00263284]
[1759316096361,6.15272142,4283.1,4282.9,0.02334894]
[1759316096659,6.15272142,4283.1,4281.5,0.9741]
[1759316096660,0.42024,4281.6,4281.5,0.9741]
[1759316096855,3.70043142,4281.6,4281.5,1.8557]
[1759316097062,3.2078,4281.6,4281.5,2.0957]
[1759316097465,3.2078,4281.6,4281.5,2.09868842]
[1759316098261,3.62798,4282.2,4282.0,0.2828]
[1759316098457,3.2078,4282.2,4282.1,1.8249]
[1759316099062,3.2078,4282.2,4282.1,1.5849]
[1759316099264,3.2078,4282.2,4282.1,1.8259]
[1759316099865,3.2078,4282.7,4282.6,1.30174]
[1759316100170,3.2078,4282.7,4282.6,2.24604]
[1759316100567,0.42012,4282.9,4282.8,1.5849]
[1759316100763,0.42009,4283.1,4283.0,0.9861]
[1759316100962,3.21019042,4283.2,4283.1,1.5849]
[1759316101363,3.21019042,4283.2,4283.1,42.3849]
[1759316102268,3.21019042,4283.2,4283.1,42.6259]
[1759316102971,0.00239042,4283.2,4283.1,47.6259]
[1759316103574,3.2078,4283.7,4283.6,2.00494]
[1759316103767,3.2078,4283.7,4283.6,2.24594]
[1759316104571,3.20986348,4283.7,4283.6,2.24594]
[1759316106072,3.20986348,4283.7,4283.6,1.8259]
[1759316108076,3.20986348,4283.7,4283.6,1.5849]
[1759316108271,3.20986348,4283.7,4283.6,1.8259]
[1759316108870,0.00206348,4283.7,4283.6,1.8259]
[1759316110771,0.00206348,4283.7,4283.6,1.5849]
[1759316111281,3.20986348,4283.7,4283.6,1.8249]
[1759316112076,3.20986348,4283.7,4283.6,1.5849]
[1759316112283,3.62989348,4283.7,4283.6,1.8249]
[1759316113677,3.62989348,4283.7,4283.6,2.24494]
[1759316113874,3.62989348,4283.7,4283.6,1.8249]
[1759316114068,3.62989348,4283.7,4283.6,2.24494]
[1759316114475,3.20986348,4283.7,4283.6,2.24494]
[1759316114673,3.62989348,4283.7,4283.6,2.24494]
[1759316114980,3.20986348,4283.7,4283.6,2.24494]
[1759316115175,0.00206348,4283.7,4283.6,2.24494]
[1759316118976,0.42209348,4283.7,4283.6,2.00494]
[1759316119178,0.00206348,4283.7,4283.6,2.24494]
[1759316119379,0.00206348,4283.7,4283.6,2.00494]
[1759316119580,0.00206348,4283.7,4283.6,2.24494]
[1759316120685,0.42209348,4283.7,4283.6,2.00494]
[1759316120986,0.42209348,4283.7,4283.6,1.5849]
[1759316121284,0.42209348,4283.7,4283.6,1.8249]
[1759316121787,0.42209348,4283.7,4283.6,1.5849]
[1759316122086,0.42209348,4283.7,4283.6,1.8249]
[1759316123087,0.42209348,4283.7,4283.6,2.24494]
[1759316123782,5.42209348,4283.7,4283.6,1.12334]
[1759316123993,8.62989348,4283.7,4283.6,0.7033]
[1759316124284,3.62989348,4283.7,4283.6,1.5887]
[1759316124481,3.62989348,4283.7,4283.6,1.8287]
[1759316124882,0.42209348,4283.7,4283.6,2.24874]
[1759316125082,0.00206348,4283.7,4283.6,2.24874]
[1759316125289,0.42209348,4283.7,4283.6,2.24874]
[1759316126787,0.00206348,4283.7,4283.6,2.24874]
[1759316127389,3.20986348,4283.7,4283.6,2.24874]
[1759316128284,4.12235898,4283.7,4283.6,1.8287]
[1759316128789,4.12235898,4283.7,4283.6,1.5887]
[1759316128992,4.12235898,4283.7,4283.6,1.8287]
[1759316129487,3.70232898,4283.7,4283.6,2.24874]
[1759316129787,0.49452898,4283.7,4283.6,2.24874]
[1759316130788,0.91455898,4283.7,4283.6,2.24874]
[1759316131487,0.91455898,4283.7,4283.6,1.8287]
[1759316131785,4.12235898,4283.7,4283.6,1.8287]
[1759316132292,4.12235898,4283.7,4283.6,1.5887]
[1759316132589,4.12235898,4283.7,4283.6,1.8287]
[1759316132893,4.12235898,4283.7,4283.6,0.9433]
[1759316133384,4.12235898,4283.7,4283.6,1.8287]
[1759316136694,0.91455898,4283.7,4283.6,1.8287]
[1759316137000,0.91455898,4283.7,4283.6,2.24874]
[1759316137598,0.91455898,4283.7,4283.6,1.8287]
[1759316138700,0.91455898,4283.7,4283.6,2.24874]
[1759316139901,0.91455898,4283.7,4283.6,1.8287]
[1759316140107,4.12235898,4283.7,4283.6,1.8287]
[1759316140708,4.12235898,4283.7,4283.6,1.8277]
[1759316140907,4.12235898,4283.7,4283.6,1.5887]
[1759316141110,4.12235898,4283.7,4283.6,1.8277]
[1759316141603,4.12235898,4283.7,4283.6,1.3946]
[1759316142003,4.12235898,4283.7,4283.6,1.1556]
[1759316142204,4.12235898,4283.7,4283.6,1.3946]
[1759316145007,4.12235898,4283.7,4283.6,0.7033]
[1759316145210,9.12235898,4283.7,4283.6,0.7033]
[1759316146314,4.12235898,4283.7,4283.6,1.1556]
[1759316146906,4.12235898,4283.7,4283.6,1.5887]
[1759316147206,3.62989348,4283.7,4283.6,1.5887]
[1759316147410,4.12266529,4283.7,4283.6,1.5887]
[1759316149504,4.12266529,4283.7,4283.6,2.00874]
[1759316150915,4.12266529,4283.7,4283.6,1.5887]
[1759316151711,4.12266529,4283.7,4283.6,2.00874]
[1759316151911,4.12266529,4283.7,4283.6,1.5887]
[1759316153924,4.12266529,4283.7,4283.6,1.8277]
[1759316154424,3.70263529,4283.7,4283.6,2.24774]
[1759316154722,4.12266529,4283.7,4283.6,2.24774]
[1759316155024,4.12266529,4283.7,4283.6,2.00874]
[1759316155219,4.12266529,4283.7,4283.6,2.24774]
[1759316156020,3.62989348,4283.7,4283.6,2.24774]
[1759316156526,3.62989348,4283.7,4283.6,43.04774]
[1759316156729,3.62989348,4283.7,4283.6,1.8277]
[1759316157328,3.62989348,4283.7,4283.6,2.24774]
[1759316157523,3.62989348,4283.7,4283.6,1.8277]
[1759316158224,3.62989348,4283.7,4283.6,1.5887]
[1759316158423,3.62989348,4283.7,4283.6,1.8277]
[1759316158620,3.62989348,4283.7,4283.6,2.24774]
[1759316159731,3.20986348,4283.7,4283.6,2.24774]
[1759316161226,3.20986348,4283.7,4283.2,0.1867]
[1759316161227,8.6981361,4283.7,4283.2,0.1867]
[1759316161429,0.42006,4283.4,4283.3,0.239]
[1759316161726,0.90833262,4283.4,4283.3,0.239]
[1759316162126,0.90833262,4283.4,4283.3,0.66]
[1759316163026,0.90333262,4283.4,4283.3,0.239]
[1759316163230,0.89833262,4283.4,4283.3,0.8999]
[1759316166128,0.89833262,4283.4,4283.3,1.7346]
[1759316166833,0.41006,4283.4,4283.3,1.7346]
[1759316168837,0.41006,4283.4,4283.3,1.4956]
[1759316169130,0.89804337,4283.4,4283.3,1.7346]
[1759316169935,0.89804337,4283.4,4283.3,1.4956]
[1759316170128,0.89804337,4283.4,4283.3,1.7346]
[1759316170838,0.41006,4283.4,4283.3,1.7346]
[1759316171335,0.41006,4283.4,4283.3,1.4956]
[1759316171542,0.41006,4283.4,4283.3,1.7346]
[1759316172137,0.41006,4283.4,4283.3,1.4956]
[1759316172334,0.41006,4283.4,4283.3,1.7346]
[1759316172534,0.0233,4283.6,4283.5,2.19015]
[1759316172835,3.20986348,4283.7,4283.6,1.91564]
[1759316173535,3.2078,4284.2,4284.1,1.49459]
[1759316173739,3.2078,4284.2,4284.1,2.15459]
[1759316173938,0.4452,4284.2,4284.1,0.8347]
[1759316174139,4.632,4284.2,4284.1,1.0737]
[1759316174436,1.84419,4284.1,4284.0,0.6955]
[1759316174632,1.84419,4284.1,4284.0,1.5954]
[1759316174936,1.28759,4284.1,4284.0,2.0091]
[1759316175128,1.28759,4284.1,4284.0,42.8091]
[1759316176537,3.63052797,4284.2,4284.1,1.91559]
[1759316176742,3.21054797,4284.2,4284.1,1.91559]
[1759316177828,0.00274797,4284.2,4284.1,1.91559]
[1759316183840,0.00274797,4284.2,4284.1,6.91559]
[1759316184039,0.00274797,4284.2,4284.1,10.12339]
[1759316184235,0.00274797,4284.2,4284.1,50.92339]
[1759316185342,3.2078,4284.8,4284.7,1.30573]
[1759316185540,0.8423,4285.1,4285.0,1.55679]
[1759316185737,1.2651,4285.1,4285.0,2.0463]
[1759316185941,1.8189,4285.1,4285.0,2.0463]
[1759316186243,1.8189,4285.1,4285.0,0.9094]
[1759316186542,1.82164736,4285.1,4285.0,0.91209863]
[1759316187231,1.82164736,4285.1,4285.0,0.67409863]
[1759316187437,1.82164736,4285.1,4285.0,0.91209863]
[1759316187846,1.26784736,4285.1,4285.0,2.01849863]
[1759316188340,1.82164736,4285.1,4285.0,1.36059863]
[1759316188542,1.82164736,4285.1,4285.0,0.91209863]
[1759316190844,1.82164736,4285.1,4285.0,0.67409863]
[1759316191043,1.82164736,4285.1,4285.0,0.91209863]
[1759316191948,1.82164736,4285.1,4285.0,0.67409863]
[1759316192246,1.82164736,4285.1,4285.0,0.91209863]
[1759316192849,5.02944736,4285.1,4285.0,1.34749863]
[1759316193545,5.02944736,4285.1,4285.0,0.67409863]
[1759316193846,5.02944736,4285.1,4285.0,0.91209863]
[1759316194245,5.02944736,4285.1,4285.0,0.67409863]
[1759316194451,5.02944736,4285.1,4285.0,0.24069863]
[1759316195344,5.02944736,4285.1,4285.0,0.00269863]
[1759316195548,5.51212794,4285.1,4285.0,0.00269863]
[1759316196150,10.51212794,4285.1,4285.0,0.00269863]
[1759316197145,1.81621,4284.9,4284.8,0.1867]
[1759316197350,2.53689058,4284.9,4284.8,0.00607351]
[1759316198244,2.53689058,4284.9,4284.8,0.0084664]
[1759316199452,2.53689058,4284.9,4284.8,0.00239289]
[1759316199953,2.53689058,4284.9,4284.8,1.10919289]
[1759316200346,2.53689058,4284.9,4284.8,0.67379289]
[1759316200755,2.29889058,4284.9,4284.8,0.67379289]
[1759316200953,2.29889058,4284.9,4284.8,1.10919289]
[1759316204456,2.29889058,4284.9,4284.8,0.00239289]
[1759316206356,7.53689058,4284.9,4284.8,0.00239289]
[1759316208356,10.74469058,4284.9,4284.8,0.00239289]
[1759316211657,10.74469058,4284.9,4284.8,2.89e-06]
[1759316216862,1.77973,4283.7,4283.6,0.6279]
[1759316217062,0.42009,4283.1,4282.7,0.238]
[1759316217268,1.31333027,4283.1,4283.0,1.0995]
[1759316217670,1.31333027,4283.1,4283.0,1.72999186]
[1759316218067,0.83179,4283.1,4283.0,1.72999186]
[1759316218462,1.73122545,4283.1,4283.0,1.72999186]
[1759316219073,1.24989,4283.1,4283.0,1.72999186]
[1759316219273,1.73109211,4283.1,4283.0,1.72999186]
[1759316219473,2.26099211,4283.1,4283.0,1.72999186]
[1759316219967,1.73109211,4283.1,4283.0,1.72999186]
[1759316220773,2.26099211,4283.1,4283.0,1.72999186]
[1759316220972,3.62788,4283.2,4283.1,0.42009]
[1759316221172,3.62788,4283.2,4283.1,6.89639]
[1759316221475,3.62788,4283.2,4283.1,7.13439]
[1759316222073,3.2078,4283.2,4283.1,7.13439]
[1759316222464,3.62788,4283.2,4283.1,7.13439]
[1759316222970,3.2078,4283.2,4283.1,7.13439]
[1759316223276,3.62788,4283.2,4283.1,7.13439]
[1759316225274,3.62788,4283.2,4283.1,6.7143]
[1759316225474,3.62788,4283.2,4283.1,7.13439]
[1759316225969,3.62788,4283.2,4283.1,6.7133]
[1759316226371,4.98758,4283.2,4283.1,1.4763]
[1759316226575,4.98758,4283.2,4283.1,1.0686]
[1759316226774,5.46834011,4283.2,4283.1,1.0686]
[1759316227776,5.46834011,4283.2,4283.1,1.0636]
[1759316227977,5.46834011,4283.2,4283.1,1.0586]
[1759316228179,4.52034011,4283.2,4283.1,1.4663]
[1759316228382,3.62788,4283.2,4283.1,1.4663]
[1759316229770,4.03958,4283.2,4283.1,1.4663]
[1759316229977,5.47806816,4283.2,4283.1,1.2956]
[1759316230176,5.47806816,4283.2,4283.1,1.0586]
[1759316230383,5.47806816,4283.2,4283.1,0.6279]
[1759316236280,4.93816816,4283.2,4283.1,1.0686]
[1759316236776,4.52006816,4283.2,4283.1,1.4763]
[1759316237886,4.10836816,4283.2,4283.1,1.89639]
[1759316238080,3.2078,4283.2,4283.1,1.89639]
[1759316238480,3.62788,4283.2,4283.1,1.89639]
[1759316238680,3.2078,4283.2,4283.1,1.89639]
[1759316239780,0.42006,4283.4,4283.3,1.25037]
[1759316240084,0.42006,4283.4,4283.3,1.87507]
[1759316241285,3.2311,4283.7,4283.6,1.455]
[1759316241491,4.13249121,4283.7,4283.6,1.87504]
[1759316241888,4.13249121,4283.7,4283.6,1.455]
[1759316243781,5.47969121,4283.7,4283.6,1.455]
[1759316243994,5.47969121,4283.7,4283.6,0.6247]
[1759316244186,5.47969121,4283.7,4283.0,0.44399186]
[1759316244187,1.25159,4283.1,4283.0,2.29969186]
[1759316244380,4.9409882,4283.1,4283.0,2.29969186]
[1759316244585,4.9409882,4283.1,4283.0,2.53669186]
[1759316245385,0.42007,4283.4,4283.3,0.42007]
[1759316245588,0.42007,4283.4,4283.3,1.85567]
[1759316245790,1.30932591,4283.4,4283.3,1.85567]
[1759316246391,1.73332591,4283.4,4283.3,1.85567]
[1759316246598,1.73332591,4283.4,4283.3,1.6726]
[1759316246990,1.73332591,4283.4,4283.3,2.09267]
[1759316247192,1.73342267,4283.4,4283.3,2.09267]
[1759316247598,1.73342267,4283.4,4283.3,1.6726]
[1759316249193,1.73342267,4283.4,4283.3,2.09267]
[1759316250697,1.73342267,4283.4,4283.3,1.6726]
[1759316250890,2.25262267,4283.4,4283.3,1.4356]
[1759316251093,2.25262267,4283.4,4283.3,1.6726]
[1759316252095,1.73342267,4283.4,4283.3,1.6726]
[1759316252297,1.73342267,4283.4,4283.3,2.09267]
[1759316252503,0.48185267,4283.4,4283.3,2.09267]
[1759316252694,1.30941267,4283.4,4283.3,2.09267]
[1759316253404,1.73341267,4283.4,4283.3,2.09267]
[1759316254105,0.48185267,4283.4,4283.3,2.09267]
[1759316255207,3.2078,4283.6,4283.5,2.10025]
[1759316255405,3.68985511,4283.6,4283.5,2.10025]
[1759316255599,3.2078,4283.6,4283.5,2.10025]
[1759316256007,0.0233,4283.7,4283.6,1.85564]
[1759316256396,0.42002,4283.9,4283.6,1.4356]
[1759316256603,0.42002,4283.9,4283.5,0.2446]
[1759316256604,0.42002,4283.9,4283.8,1.4356]
[1759316256898,0.90196751,4283.9,4283.8,1.4356]
[1759316257906,1.30946751,4283.9,4283.8,1.4356]
[1759316258109,1.73346751,4283.9,4283.8,1.4356]
[1759316260411,2.25266751,4283.9,4283.8,1.6726]
[1759316260713,1.30946751,4283.9,4283.8,1.6726]
[1759316262916,0.48194751,4283.9,4283.8,2.09262]
[1759316265015,0.90195751,4283.9,4283.8,2.09262]
[1759316265223,1.30945751,4283.9,4283.8,1.85562]
[1759316265419,1.30945751,4283.9,4283.8,2.09262]
[1759316265619,1.30945751,4283.9,4283.8,1.85562]
[1759316265816,1.73345751,4283.9,4283.8,2.09262]
[1759316266414,1.73345751,4283.9,4283.8,1.0344]
[1759316266620,2.25265751,4283.9,4283.8,0.6068]
[1759316267224,1.25154,4283.6,4283.5,1.279]
[1759316267424,4.97854,4283.6,4283.5,1.279]
[1759316267621,4.45934,4283.6,4283.5,1.279]
[1759316267825,4.45934,4283.6,4283.5,1.6802]
[1759316268027,5.4606122,4283.6,4283.5,1.6802]
[1759316268623,4.94144832,4283.6,4283.5,1.6802]
[1759316268925,5.46064832,4283.6,4283.5,1.6802]
[1759316269520,5.46064832,4283.6,4283.5,0.6068]
[1759316269727,1.25158,4283.2,4283.1,1.45448]
[1759316270020,0.8315,4283.2,4283.1,2.09268]
[1759316270214,1.25158,4283.2,4283.1,2.09268]
[1759316270820,1.25158,4283.2,4283.1,1.6726]
[1759316271020,1.73366421,4283.2,4283.1,1.6726]
[1759316271931,1.73366421,4283.2,4283.1,2.09269]
[1759316272225,1.30966421,4283.2,4283.1,1.6726]
[1759316275630,1.30966421,4283.2,4283.1,1.4356]
[1759316275840,1.30966421,4283.2,4283.1,1.6726]
[1759316276132,1.72276421,4283.2,4283.1,1.6726]
[1759316276330,1.72419,4283.1,4283.0,0.00259186]
[1759316276526,5.41407421,4283.1,4283.0,0.65489186]
[1759316276931,5.41407421,4283.1,4283.0,1.31989186]
[1759316277530,5.41407421,4283.1,4283.0,0.65489186]
[1759316278030,5.41407421,4283.1,4283.0,0.00259186]
[1759316278733,5.41407421,4283.1,4283.0,0.65489186]
[1759316279829,5.41407421,4283.1,4283.0,0.00259186]
[1759316280132,5.41407421,4283.1,4283.0,0.65489186]
[1759316280334,5.41407421,4283.1,4283.0,1.31989186]
[1759316280830,5.65107421,4283.1,4283.0,0.00259186]
[1759316282826,5.65107421,4283.1,4283.0,1.74419186]
[1759316282827,4.91687421,4283.1,4283.0,1.74419186]
[1759316284728,4.49678421,4283.1,4283.0,1.74419186]
[1759316284932,3.68988421,4283.1,4283.0,1.74419186]
[1759316285132,3.2078,4283.1,4283.0,1.74419186]
[1759316285922,3.6016,4283.1,4283.0,1.74419186]
[1759316286535,3.2078,4283.1,4283.0,1.74419186]
[1759316286935,3.2078,4283.1,4283.0,1.98119186]
[1759316288333,3.2078,4283.1,4283.0,1.74419186]
[1759316288538,3.2078,4283.1,4283.0,1.98119186]
[1759316289534,3.2078,4283.1,4283.0,2.40129186]
[1759316291639,3.2078,4283.1,4283.0,2.16429186]
[1759316291842,0.83717,4283.3,4283.2,1.489]
[1759316292041,0.0233,4283.3,4283.2,1.90908]
[1759316292243,0.81385,4283.6,4283.5,2.16165]
[1759316292539,0.81385,4283.6,4283.5,2.39865]
[1759316292935,1.29556864,4283.6,4283.5,2.39865]
[1759316293131,0.87551864,4283.6,4283.5,2.39865]
[1759316293335,3.2078,4283.7,4283.6,1.90904]
[1759316293739,3.6016,4283.7,4283.6,1.90904]
[1759316294737,4.93193,4283.7,4283.6,1.0647]
[1759316296335,0.42006,4283.4,4283.3,1.25907]
[1759316296541,1.72416,4283.4,4283.3,1.076]
[1759316296743,1.72416,4283.4,4283.3,1.90847]
[1759316296943,1.72416,4283.4,4283.3,1.4884]
[1759316297144,2.20644302,4283.4,4283.3,1.4884]
[1759316297945,1.70924302,4283.4,4283.3,1.726]
[1759316298343,1.70924302,4283.4,4283.3,2.14607]
[1759316298538,1.70924302,4283.4,4283.3,1.90907]
[1759316298744,1.70924302,4283.4,4283.3,2.14607]
[1759316299045,1.28918302,4283.4,4283.3,2.14607]
[1759316299243,1.70924302,4283.4,4283.3,2.14607]
[1759316299446,1.29614302,4283.4,4283.3,2.14607]
[1759316300040,0.48228302,4283.4,4283.3,2.14607]
[1759316300242,3.2078,4283.7,4283.6,1.21534]
[1759316300444,4.11043654,4283.7,4283.6,2.06184]
[1759316300845,3.69040654,4283.7,4283.6,2.06184]
[1759316301443,4.11043654,4283.7,4283.6,2.06184]
[1759316301746,4.51883654,4283.7,4283.6,2.06184]
[1759316303253,4.51883654,4283.7,4283.6,1.82484]
[1759316303452,4.51883654,4283.7,4283.6,2.06184]
[1759316303948,0.89100654,4283.7,4283.6,2.06184]
[1759316304157,0.48260654,4283.7,4283.6,2.06184]
[1759316304655,0.90263654,4283.7,4283.6,1.6418]
[1759316304851,1.31523654,4283.7,4283.6,1.6418]
[1759316306347,0.42003,4283.7,4283.6,1.6418]
[1759316307853,0.42003,4283.7,4283.6,2.06184]
[1759316308253,0.44332,4283.9,4283.8,1.80372]
[1759316308547,0.42002,4283.9,4283.8,1.80372]
[1759316308749,0.42,4284.1,4284.0,1.4617]
[1759316309058,0.42,4284.1,4284.0,2.2852]
[1759316309252,0.42,4284.1,4284.0,43.0802]
[1759316309554,0.42,4284.1,4284.0,42.6652]
[1759316310756,0.42,4284.1,4284.0,42.4282]
[1759316310954,0.42,4284.1,4284.0,42.6652]
[1759316311662,0.42,4284.1,4284.0,43.0852]
[1759316313162,0.85588,4284.3,4284.2,1.21718]
[1759316313346,0.85588,4284.3,4284.2,2.04068]
[1759316314060,0.0233,4284.3,4284.2,2.04068]
[1759316315452,0.41996,4284.5,4284.4,1.80366]
[1759316315753,1.04982,4284.8,4284.4,1.80366]
[1759316315754,3.2078,4284.9,4284.6,0.7972]
[1759316315950,3.2078,4284.9,4284.8,1.80362]
[1759316316553,3.2078,4284.9,4284.8,42.60362]
[1759316316847,3.62767,4285.4,4285.0,2.04811]
[1759316317047,0.48844535,4285.3,4285.0,2.04811]
[1759316317251,3.2078,4285.4,4285.0,1.8652]
[1759316317252,1.22144736,4285.1,4285.0,1.8652]
[1759316317656,1.22144736,4285.1,4285.0,42.6652]
[1759316317855,1.69704736,4285.1,4285.0,42.4282]
[1759316318159,1.69704736,4285.1,4285.0,42.6652]
[1759316319052,1.22144736,4285.1,4285.0,42.6652]
[1759316321958,1.69704736,4285.1,4285.0,42.4282]
[1759316322150,1.69704736,4285.1,4285.0,42.6652]
[1759316322756,1.69704736,4285.1,4285.0,1.6282]
[1759316322964,2.18508539,4285.1,4285.0,1.4549]
[1759316323159,2.18508539,4285.1,4285.0,0.5865]
[1759316323463,0.41993,4284.8,4284.7,41.3865]
[1759316323665,4.90213,4284.8,4284.7,0.8235]
[1759316323955,5.39014157,4284.8,4284.7,0.8235]
[1759316324661,5.39014157,4284.8,4284.7,1.2104]
[1759316324961,5.39014157,4284.8,4284.5,0.2445]
[1759316324962,1.21874,4284.7,4284.6,0.237]
[1759316325158,1.69434,4284.7,4284.6,0.8235]
[1759316325558,1.69434,4284.7,4284.6,1.2104]
[1759316325965,1.69434,4284.7,4284.6,0.8235]
[1759316326358,2.18236669,4284.7,4284.6,0.8235]
[1759316326563,2.18236669,4284.7,4284.6,1.2104]
[1759316327753,2.18236669,4284.7,4284.6,0.9734]
[1759316328159,2.18236669,4284.7,4284.6,0.5865]
[1759316328358,2.18236669,4284.7,4284.6,1.3837]
[1759316328359,1.70676669,4284.7,4284.6,1.3837]
[1759316329468,0.90796669,4284.7,4284.6,1.80364]
[1759316329668,0.48802669,4284.7,4284.6,1.80364]
[1759316330562,3.2078,4284.8,4284.7,1.21714]
[1759316330767,3.2078,4284.8,4284.7,1.80364]
[1759316331570,3.2078,4284.8,4284.7,42.60364]
[1759316332774,0.42264736,4285.1,4285.0,1.46161]
[1759316332967,0.42264736,4285.1,4285.0,2.04811]
[1759316333168,0.42264736,4285.1,4285.0,2.28511]
[1759316333368,0.8988441,4285.1,4285.0,2.28511]
[1759316334569,0.00274736,4285.1,4285.0,2.28511]
[1759316335370,0.47938099,4285.1,4285.0,2.28511]
[1759316337876,0.00274736,4285.1,4285.0,2.28511]
[1759316340880,0.42264736,4285.1,4285.0,2.28511]
[1759316341482,0.00274736,4285.1,4285.0,2.28511]